bitfinex/quotes_SOLUSD_20240727
["timestamp","ask_amount","ask_price","bid_price","bid_amount"]
[1722069003062,21.33759585,186.93,186.88,12.39]
[1722069003759,1.33759781,186.92,186.87,12.39]
[1722069003970,1.33759781,186.92,186.88,45.0]
[1722069005675,20.0,186.93,186.88,45.0]
[1722069005846,21.33759782,186.93,186.88,45.0]
[1722069006048,1.33759782,186.93,186.88,45.0]
[1722069006965,1.33759782,186.93,186.87,12.39]
[1722069011876,21.3376497,186.94,186.87,12.39]
[1722069012177,20.0,186.94,186.88,12.39]
[1722069012356,32.39,186.95,186.88,12.39]
[1722069013081,33.72764826,186.95,186.88,12.39]
[1722069013251,39.07674826,186.95,186.87,12.39]
[1722069013948,12.39,186.94,186.87,12.39]
[1722069014173,12.39,186.94,186.8,16.63791931]
[1722069014174,33.72765015,186.93,186.8,16.63791931]
[1722069014348,13.72765015,186.93,186.86,12.39]
[1722069014548,32.39,186.92,186.85,12.39]
[1722069014763,13.72777965,186.92,186.85,12.39]
[1722069015681,1.33777965,186.92,186.85,12.39]
[1722069015862,21.33777965,186.92,186.85,12.39]
[1722069016063,21.33777965,186.92,186.86,12.39]
[1722069017467,20.0,186.92,186.86,12.39]
[1722069017772,20.0,186.92,186.81,45.0]
[1722069017773,20.0,186.92,186.81,46.07021583]
[1722069017983,20.0,186.93,186.88,12.39]
[1722069018278,1.33764771,186.93,186.87,12.39]
[1722069018482,12.39,186.93,186.86,12.39]
[1722069018682,20.0,186.92,186.86,12.39]
[1722069018856,17.7402,186.91,186.8,15.5678]
[1722069019174,17.7402,186.91,186.83,12.39]
[1722069019175,12.39,186.9,186.83,12.39]
[1722069021081,13.72796517,186.9,186.84,12.39]
[1722069021559,12.39,186.9,186.84,12.39]
[1722069022683,32.39,186.92,186.85,12.39]
[1722069023174,39.07773499,186.92,186.85,12.39]
[1722069023371,9.44321401,186.91,186.85,12.39]
[1722069023552,20.0,186.9,186.85,12.39]
[1722069024163,20.0,186.91,186.85,12.39]
[1722069024680,20.0,186.91,186.84,12.39]
[1722069025886,12.39,186.9,186.84,12.39]
[1722069026182,13.72790233,186.9,186.84,12.39]
[1722069028476,15.0238,186.89,186.77,7.39172187]
[1722069028786,15.0238,186.89,186.84,12.39]
[1722069030475,20.0,186.91,186.87,12.39]
[1722069030679,20.0,186.92,186.87,12.39]
[1722069031764,20.0,186.92,186.88,12.39]
[1722069031960,15.0238,186.94,186.89,12.39]
[1722069032364,15.0238,186.94,186.9,12.39]
[1722069032568,15.0238,186.94,186.89,12.39]
[1722069033362,20.0,186.93,186.89,12.39]
[1722069033682,12.39,186.92,186.85,12.39]
[1722069033865,13.72783918,186.92,186.85,12.39]
[1722069034277,20.0,186.91,186.85,12.39]
[1722069034475,20.0,186.91,186.86,12.39]
[1722069034872,20.0,186.92,186.87,12.39]
[1722069036769,20.0,186.92,186.86,12.39]
[1722069040260,32.39,186.93,186.86,12.39]
[1722069041083,33.72773089,186.93,186.86,12.39]
[1722069041293,32.39,186.93,186.86,12.39]
[1722069042480,33.72773161,186.93,186.86,12.39]
[1722069043466,13.72775843,186.92,186.85,12.39]
[1722069043664,32.39,186.91,186.84,12.39]
[1722069043886,1.33788037,186.9,186.85,12.39]
[1722069045072,21.33790325,186.91,186.85,12.39]
[1722069048087,21.33790325,186.91,186.84,12.39]
[1722069048088,12.39,186.9,186.84,12.39]
[1722069048286,20.0,186.89,186.84,12.39]
[1722069049880,20.0,186.89,186.83,12.39]
[1722069051698,20.0,186.89,186.85,12.39]
[1722069051900,20.0,186.91,186.85,12.39]
[1722069052279,20.0,186.91,186.78,61.5969642]
[1722069052600,32.39,186.91,186.84,12.39]
[1722069052896,37.7402,186.91,186.84,12.39]
[1722069053599,13.72796918,186.9,186.83,12.39]
[1722069053802,20.0,186.89,186.84,12.39]
[1722069054407,21.33796918,186.9,186.84,12.39]
[1722069056808,1.33796898,186.89,186.84,12.39]
[1722069058386,1.33796898,186.89,186.78,60.5266]
[1722069058591,1.33796898,186.89,186.83,12.39]
[1722069058892,1.33796898,186.89,186.78,60.5266]
[1722069058893,1.33796898,186.89,186.84,12.39]
[1722069059208,32.39,186.9,186.83,12.39]
[1722069059701,20.0,186.9,186.84,12.39]
[1722069060607,20.0,186.9,186.85,12.39]
[1722069060816,20.0,186.9,186.86,12.39]
[1722069060991,5.3499,186.92,186.86,12.39]
[1722069061192,20.0,186.91,186.86,12.39]
[1722069062607,26.68793318,186.91,186.86,12.39]
[1722069062922,20.0,186.91,186.86,12.39]
[1722069064510,20.0,186.91,186.87,12.39]
[1722069064711,20.0,186.92,186.87,12.39]
[1722069067291,20.0,186.92,186.86,12.39]
[1722069067809,39.07770362,186.92,186.85,12.39]
[1722069068611,12.39,186.9,186.78,60.5266]
[1722069068798,17.7415,186.87,186.78,15.5266]
[1722069068995,19.07981577,186.86,186.79,12.39]
[1722069069202,1.33827014,186.85,186.79,12.39]
[1722069069598,13.72827014,186.85,186.79,12.39]
[1722069070109,12.39,186.85,186.79,12.39]
[1722069070313,21.33828034,186.84,186.78,12.39]
[1722069071893,1.33828034,186.84,186.78,12.39]
[1722069072090,21.33828034,186.84,186.78,12.39]
[1722069072514,20.0,186.84,186.8,12.39]
[1722069072706,20.0,186.86,186.8,12.39]
[1722069073223,25.3516,186.86,186.8,12.39]
[1722069073529,20.0,186.86,186.8,12.39]
[1722069076123,20.0,186.86,186.81,12.39]
[1722069076726,12.39,186.85,186.79,57.39]
[1722069077124,17.7424,186.83,186.74,15.4954]
[1722069077299,21.33839881,186.82,186.76,12.39]
[1722069078226,21.33839881,186.82,186.76,11.89]
[1722069078816,20.0,186.82,186.77,45.0]
[1722069080516,20.0,186.82,186.78,12.39]
[1722069080726,20.0,186.84,186.8,12.39]
[1722069080913,37.7414,186.87,186.8,12.39]
[1722069082124,5.3516,186.86,186.8,12.39]
[1722069082328,20.0,186.85,186.8,12.39]
[1722069085123,37.742,186.85,186.77,45.0]
[1722069085336,37.742,186.85,186.79,12.39]
[1722069086031,20.0,186.85,186.79,12.39]
[1722069086812,32.39,186.85,186.78,12.39]
[1722069087008,32.39,186.85,186.79,45.0]
[1722069087226,37.7419,186.85,186.79,45.0]
[1722069087612,5.3522,186.84,186.71,1.07058496]
[1722069087819,5.3522,186.84,186.78,12.39]
[1722069088321,25.3519,186.85,186.78,12.39]
[1722069088516,32.39,186.85,186.78,12.39]
[1722069088927,32.39,186.85,186.79,45.0]
[1722069089737,20.0,186.85,186.71,1.07058496]
[1722069089909,20.0,186.85,186.8,12.39]
[1722069094115,25.3519,186.85,186.79,57.39]
[1722069096844,20.0,186.85,186.79,57.39]
[1722069098235,32.39,186.85,186.79,45.0]
[1722069098531,33.72822566,186.85,186.79,45.0]
[1722069098732,21.33822566,186.85,186.79,57.39]
[1722069098925,27.4848,186.88,186.81,12.39]
[1722069099115,27.4848,186.88,186.83,12.39]
[1722069099116,15.0948,186.88,186.83,12.39]
[1722069099525,15.0948,186.88,186.79,45.0]
[1722069099526,15.0948,186.88,186.84,57.39]
[1722069106523,15.0948,186.88,186.85,12.39]
[1722069107744,6.2838,186.89,186.85,12.39]
[1722069109237,6.2838,186.89,186.84,12.39]
[1722069109433,20.01178712,186.89,186.82,12.39]
[1722069109829,20.0,186.88,186.82,12.39]
[1722069110027,13.72815143,186.87,186.8,12.39]
[1722069111442,12.39,186.86,186.76,16.244]
[1722069111735,12.39,186.86,186.78,12.39]
[1722069111736,21.33827064,186.85,186.78,12.39]
[1722069111939,21.33827064,186.85,186.71,15.7407]
[1722069112132,33.72827064,186.85,186.78,12.39]
[1722069112859,33.72827064,186.85,186.79,45.0]
[1722069113652,33.72827064,186.85,186.78,12.39]
[1722069114246,32.39,186.85,186.79,12.39]
[1722069114556,20.0,186.85,186.8,12.39]
[1722069114724,20.0,186.85,186.79,12.39]
[1722069116748,20.0,186.85,186.8,12.39]
[1722069117432,21.33824977,186.85,186.79,12.39]
[1722069117853,20.0,186.85,186.79,12.39]
[1722069120553,39.08015223,186.85,186.78,12.39]
[1722069120934,12.39,186.84,186.71,16.81135256]
[1722069121134,12.39,186.84,186.77,12.39]
[1722069121447,39.08015223,186.85,186.78,57.39]
[1722069122327,33.72825223,186.85,186.78,57.39]
[1722069126270,33.72825223,186.85,186.71,16.81135256]
[1722069126271,33.72825223,186.85,186.71,15.7407]
[1722069126573,12.39,186.84,186.77,12.39]
[1722069126731,1.33839424,186.83,186.77,12.39]
[1722069130161,12.39,186.84,186.77,12.39]
[1722069130343,12.39,186.84,186.78,12.39]
[1722069130544,33.7284197,186.85,186.79,12.39]
[1722069131347,32.39,186.85,186.79,12.39]
[1722069132044,33.72840808,186.85,186.79,12.39]
[1722069133354,20.0,186.85,186.8,12.39]
[1722069134248,20.0,186.85,186.72,46.07072603]
[1722069134451,12.39,186.84,186.72,45.0]
[1722069134647,12.39,186.84,186.77,12.39]
[1722069134844,32.39,186.85,186.78,12.39]
[1722069135759,20.0,186.85,186.79,12.39]
[1722069136543,21.33832275,186.85,186.78,12.39]
[1722069137753,33.72832275,186.85,186.78,12.39]
[1722069138964,33.72832275,186.85,186.71,15.7407]
[1722069138965,18.8356,186.84,186.71,15.7407]
[1722069139179,21.33853082,186.83,186.76,12.39]
[1722069139349,1.33853427,186.82,186.76,12.39]
[1722069139545,15.1976,186.81,186.75,12.39]
[1722069141046,1.33853385,186.8,186.75,12.39]
[1722069142253,15.1976,186.81,186.75,12.39]
[1722069142453,15.1976,186.81,186.76,12.39]
[1722069144053,15.1976,186.81,186.69,1.58581752]
[1722069144273,20.0,186.8,186.75,12.39]
[1722069144454,32.39,186.8,186.69,0.5149953]
[1722069144655,32.39,186.8,186.74,12.39]
[1722069146154,1.33876292,186.79,186.74,12.39]
[1722069147153,32.39,186.8,186.74,12.39]
[1722069147575,20.0,186.8,186.76,12.39]
[1722069148853,20.0,186.8,186.77,12.39]
[1722069149274,15.1976,186.81,186.77,12.39]
[1722069149481,15.1976,186.81,186.79,12.39]
[1722069149663,6.4456,186.84,186.79,12.39]
[1722069150674,1.33819035,186.83,186.79,12.39]
[1722069150989,12.39,186.81,186.69,387.9149953]
[1722069151156,1.33858887,186.8,186.74,12.39]
[1722069151481,6.4456,186.84,186.74,12.39]
[1722069151684,6.4456,186.84,186.77,12.39]
[1722069151685,20.0,186.83,186.77,12.39]
[1722069154997,6.4456,186.84,186.8,12.39]
[1722069155297,15.3298,186.85,186.8,12.39]
[1722069156163,16.66798873,186.85,186.75,49.56]
[1722069156375,20.0,186.84,186.79,12.39]
[1722069156580,20.0,186.84,186.78,12.39]
[1722069156777,20.0,186.84,186.76,45.0]
[1722069156989,21.5488,186.89,186.82,12.39]
[1722069157303,21.5488,186.89,186.83,12.39]
[1722069157768,12.39,186.87,186.8,12.39]
[1722069157971,12.39,186.87,186.81,57.39]
[1722069158175,12.39,186.87,186.81,12.39]
[1722069158394,13.72818389,186.86,186.76,45.0]
[1722069158600,37.7419,186.85,186.78,12.39]
[1722069158775,32.39,186.85,186.78,12.39]
[1722069158977,37.7419,186.85,186.78,12.39]
[1722069159192,23.9619,186.82,186.7,1.0708442]
[1722069159397,37.743,186.81,186.74,12.39]
[1722069159896,12.39,186.8,186.74,12.39]
[1722069160270,20.0,186.79,186.74,12.39]
[1722069161183,20.0,186.8,186.74,12.39]
[1722069166997,13.72869826,186.79,186.69,0.5149953]
[1722069167180,13.72869826,186.79,186.72,12.39]
[1722069167181,32.39,186.78,186.72,12.39]
[1722069167385,13.72881566,186.77,186.71,12.39]
[1722069167578,20.0,186.76,186.7,12.39]
[1722069167778,20.0,186.76,186.69,12.9049953]
[1722069167779,39.08352351,186.76,186.69,12.9049953]
[1722069167970,33.72892351,186.76,186.69,12.9049953]
[1722069168494,32.39,186.76,186.69,12.9049953]
[1722069169286,39.08347427,186.76,186.69,12.9049953]
[1722069169589,17.745,186.75,186.69,0.5149953]
[1722069169801,17.7455,186.73,186.69,0.5149953]
[1722069169985,21.33924903,186.72,186.69,0.5149953]
[1722069170194,20.0,186.72,186.69,0.5149953]
[1722069170883,1.33924804,186.71,186.69,0.5149953]
[1722069171103,1.33924989,186.7,186.69,0.5149953]
[1722069171286,13.72929775,186.71,186.69,0.5149953]
[1722069171596,32.39,186.72,186.69,0.5149953]
[1722069171891,20.0,186.72,186.69,0.5149953]
[1722069172474,32.39,186.72,186.69,0.5149953]
[1722069173410,39.08487679,186.72,186.69,0.5149953]
[1722069173905,15.3086,186.71,186.69,0.5149953]
[1722069174074,20.0,186.7,186.69,0.5149953]
[1722069174494,39.0855855,186.7,186.69,0.5149953]
[1722069175209,37.7461,186.7,186.69,0.5149953]
[1722069175509,39.08560211,186.7,186.69,0.5149953]
[1722069176118,37.7461,186.7,186.69,0.5149953]
[1722069177108,39.08567948,186.7,186.69,0.5149953]
[1722069177489,15.3086,186.76,186.69,12.9049953]
[1722069177693,12.39,186.79,186.73,12.39]
[1722069177885,13.72873947,186.79,186.73,12.39]
[1722069178581,5.3539,186.78,186.73,12.39]
[1722069178783,17.7439,186.78,186.71,12.39]
[1722069179599,12.39,186.78,186.71,12.39]
[1722069181211,1.33886954,186.77,186.71,12.39]
[1722069181503,1.33895598,186.76,186.7,12.39]
[1722069181698,21.33895598,186.76,186.7,12.39]
[1722069181880,12.39,186.74,186.69,0.5149953]
[1722069182085,17.7451,186.74,186.69,0.5149953]
[1722069182299,20.0,186.73,186.69,0.5149953]
[1722069184913,33.72922927,186.73,186.69,0.5149953]
[1722069185207,12.39,186.72,186.69,0.5149953]
[1722069185402,32.39,186.73,186.69,0.5149953]
[1722069185599,20.0,186.73,186.69,0.5149953]
[1722069187405,26.69452895,186.73,186.69,0.5149953]
[1722069188023,39.08452895,186.73,186.69,0.5149953]
[1722069188314,33.72922895,186.73,186.69,0.5149953]
[1722069188812,39.08452895,186.73,186.69,0.5149953]
[1722069190214,37.7453,186.73,186.69,0.5149953]
[1722069190394,20.0,186.73,186.69,0.5149953]
[1722069190595,21.33923598,186.73,186.69,0.5149953]
[1722069191110,20.0,186.73,186.69,0.5149953]
[1722069191304,1.33927345,186.72,186.69,0.5149953]
[1722069192314,20.0,186.73,186.69,12.9049953]
[1722069193331,32.39,186.75,186.69,0.5149953]
[1722069193502,12.39,186.74,186.69,0.5149953]
[1722069193697,20.0,186.73,186.69,0.5149953]
[1722069195105,20.0,186.75,186.69,0.5149953]
[1722069195302,32.39,186.75,186.69,0.5149953]
[1722069196319,37.7448,186.75,186.69,0.5149953]
[1722069196732,5.3552,186.74,186.69,0.5149953]
[1722069197021,20.0,186.73,186.69,0.5149953]
[1722069197723,21.33920679,186.73,186.69,0.5149953]
[1722069198101,20.0,186.73,186.69,0.5149953]
[1722069198501,21.33922782,186.73,186.69,0.5149953]
[1722069199001,20.0,186.73,186.69,0.5149953]
[1722069200723,21.33919954,186.74,186.69,0.5149953]
[1722069202733,20.0,186.74,186.69,0.5149953]
[1722069203033,37.7452,186.74,186.69,0.5149953]
[1722069205328,1.33925136,186.73,186.69,0.5149953]
[1722069206429,32.39,186.74,186.69,0.5149953]
[1722069206822,1.33921872,186.73,186.69,0.5149953]
[1722069208132,32.39,186.74,186.69,0.5149953]
[1722069208720,37.745,186.74,186.69,0.5149953]
[1722069209528,13.72921812,186.73,186.69,0.5149953]
[1722069209726,20.0,186.72,186.69,0.5149953]
[1722069210236,32.39,186.72,186.69,0.5149953]
[1722069210546,1.33931485,186.71,186.69,0.5149953]
[1722069210722,20.0,186.72,186.69,0.5149953]
[1722069211231,21.33931471,186.72,186.69,0.5149953]
[1722069213337,12.39,186.71,186.69,0.5149953]
[1722069213830,1.33940411,186.7,186.69,0.5149953]
[1722069214037,13.72940411,186.7,186.69,0.5149953]
[1722069214212,33.72940411,186.7,186.69,0.5149953]
[1722069215038,20.0,186.7,186.69,0.5149953]
[1722069215618,37.7461,186.7,186.69,0.5149953]
[1722069215818,32.39,186.7,186.69,0.5149953]
[1722069216134,20.0,186.7,186.69,0.5149953]
[1722069217223,21.33932805,186.7,186.69,0.5149953]
[1722069218030,20.0,186.7,186.69,0.5149953]
[1722069221652,21.33933175,186.7,186.69,0.5149953]
[1722069222741,21.33933076,186.7,186.69,0.5149953]
[1722069223053,39.08543076,186.7,186.69,0.5149953]
[1722069224652,5.3565,186.69,186.57,15.8362]
[1722069224841,33.72958284,186.68,186.62,12.39]
[1722069225462,32.39,186.68,186.62,12.39]
[1722069226042,37.7467,186.68,186.62,12.39]
[1722069226557,1.33965267,186.67,186.62,12.39]
[1722069226744,1.33965267,186.67,186.61,12.39]
[1722069227134,37.7467,186.68,186.61,12.39]
[1722069227563,37.7467,186.68,186.58,45.0]
[1722069227732,37.7467,186.68,186.61,12.39]
[1722069228430,39.08639902,186.68,186.61,12.39]
[1722069228757,17.7471,186.67,186.61,12.39]
[1722069228934,20.0,186.66,186.57,15.8362]
[1722069229124,20.0,186.66,186.61,12.39]
[1722069229531,37.7474,186.66,186.59,12.39]
[1722069229753,1.33972437,186.65,186.59,12.39]
[1722069230760,32.39,186.66,186.6,12.39]
[1722069230957,20.0,186.66,186.61,12.39]
[1722069231455,20.0,186.66,186.57,15.8362]
[1722069231633,20.0,186.66,186.61,12.39]
[1722069231830,20.0,186.67,186.61,12.39]
[1722069233048,21.33969098,186.67,186.62,12.39]
[1722069233233,20.0,186.66,186.63,12.39]
[1722069233551,20.0,186.68,186.63,12.39]
[1722069234764,26.69626217,186.68,186.62,12.39]
[1722069235057,5.3572,186.67,186.62,12.39]
[1722069235237,20.0,186.66,186.62,12.39]
[1722069235756,25.3574,186.66,186.62,12.39]
[1722069236859,25.3574,186.66,186.61,12.39]
[1722069237339,26.69710214,186.66,186.61,12.39]
[1722069238068,26.69710214,186.66,186.6,12.39]
[1722069238240,5.3577,186.65,186.6,12.39]
[1722069238759,5.3577,186.65,186.57,15.8362]
[1722069238760,25.3579,186.64,186.52,22.92851866]
[1722069238947,25.3579,186.64,186.59,12.39]
[1722069238948,5.3579,186.64,186.59,12.39]
[1722069239144,12.39,186.65,186.52,21.8568]
[1722069239145,27.5888,186.65,186.52,21.8568]
[1722069239348,5.3582,186.63,186.57,12.39]
[1722069240754,25.3579,186.64,186.57,12.39]
[1722069241058,37.7479,186.64,186.57,12.39]
[1722069241251,5.3588,186.61,186.52,16.90819994]
[1722069241458,5.3588,186.61,186.53,12.39]
[1722069241459,12.39,186.59,186.53,12.39]
[1722069241630,1.34020943,186.59,186.51,387.4]
[1722069241834,12.39,186.6,186.53,12.39]
[1722069242030,11.7687,186.63,186.56,12.39]
[1722069242235,21.3402092,186.64,186.58,12.39]
[1722069242548,20.0,186.64,186.59,12.39]
[1722069242942,20.0,186.64,186.6,12.39]
[1722069244339,20.0,186.64,186.59,12.39]
[1722069244546,21.3398093,186.64,186.58,12.39]
[1722069245063,20.0,186.64,186.58,12.39]
[1722069245644,20.0,186.64,186.59,12.39]
[1722069247163,26.69763539,186.64,186.58,12.39]
[1722069247362,12.39,186.62,186.5,0.8104034]
[1722069247662,12.39,186.63,186.57,12.39]
[1722069247960,20.0,186.62,186.57,12.39]
[1722069248461,20.0,186.62,186.58,12.39]
[1722069248868,20.0,186.63,186.58,12.39]
[1722069249047,5.3584,186.62,186.58,12.39]
[1722069249246,20.0,186.63,186.57,12.39]
[1722069249646,20.0,186.63,186.53,6.3562]
[1722069249849,21.33996168,186.64,186.54,45.0]
[1722069250062,21.33996168,186.64,186.59,12.39]
[1722069250882,20.0,186.64,186.59,12.39]
[1722069252472,21.33982054,186.64,186.54,45.0]
[1722069252646,39.08772054,186.64,186.57,12.39]
[1722069252854,25.3579,186.64,186.58,12.39]
[1722069253584,26.69782319,186.64,186.58,12.39]
[1722069254944,21.33992319,186.64,186.59,12.39]
[1722069255153,20.0,186.64,186.61,12.39]
[1722069255472,13.72980272,186.68,186.62,12.39]
[1722069255473,20.0,186.66,186.62,12.39]
[1722069255667,20.0,186.67,186.64,12.39]
[1722069255878,25.3564,186.69,186.64,12.39]
[1722069256086,1.33951292,186.68,186.55,17.26051731]
[1722069256246,12.39,186.67,186.55,17.26051701]
[1722069256445,20.0,186.66,186.61,12.39]
[1722069258577,20.0,186.66,186.6,12.39]
[1722069258751,25.3574,186.66,186.6,12.39]
[1722069259272,20.0,186.66,186.6,12.39]
[1722069259462,20.0,186.66,186.62,12.39]
[1722069259759,20.0,186.67,186.62,12.39]
[1722069260566,17.69405482,186.7,186.57,12.39]
[1722069260567,16.3544,186.7,186.64,12.39]
[1722069261050,17.69379721,186.7,186.64,12.39]
[1722069261814,35.43999721,186.7,186.64,12.39]
[1722069261960,20.0,186.69,186.64,12.39]
[1722069263247,1.33940075,186.68,186.64,12.39]
[1722069263455,1.33948297,186.67,186.63,12.39]
[1722069263763,1.33948297,186.67,186.55,16.1888]
[1722069263961,1.33949492,186.68,186.63,12.39]
[1722069266384,1.33949492,186.68,186.55,17.26039296]
[1722069266583,1.33949167,186.67,186.63,12.39]
[1722069266772,1.33949167,186.67,186.61,12.39]
[1722069267172,19.08622939,186.68,186.61,12.39]
[1722069267479,13.72952939,186.68,186.61,12.39]
[1722069267679,13.72952939,186.68,186.57,49.56]
[1722069267680,13.72952939,186.68,186.55,16.1888]
[1722069267880,13.72952939,186.68,186.61,12.39]
[1722069268079,13.72954174,186.68,186.61,12.39]
[1722069268276,12.39,186.68,186.61,12.39]
[1722069268584,20.0,186.69,186.64,12.39]
[1722069268785,33.72939695,186.7,186.64,12.39]
[1722069268970,12.39,186.66,186.55,22.2248]
[1722069269171,12.39,186.66,186.59,12.39]
[1722069269585,12.39,186.66,186.6,12.39]
[1722069269783,12.39,186.67,186.6,12.39]
[1722069269969,20.0,186.66,186.6,12.39]
[1722069270674,20.0,186.66,186.62,12.39]
[1722069270989,15.3609,186.68,186.62,12.39]
[1722069271286,12.39,186.69,186.62,12.39]
[1722069271477,20.0,186.68,186.62,12.39]
[1722069271795,21.33944827,186.68,186.62,12.39]
[1722069272166,33.72944827,186.68,186.62,12.39]
[1722069272670,37.7869,186.68,186.57,49.72]
[1722069272876,37.7869,186.68,186.58,1.0716758]
[1722069273181,37.7869,186.68,186.55,22.2248]
[1722069273182,5.3571,186.67,186.55,22.2248]
[1722069273380,17.7871,186.67,186.6,12.43]
[1722069273775,13.76969802,186.66,186.55,22.2248]
[1722069273976,17.7873,186.66,186.59,12.43]
[1722069274299,12.43,186.66,186.59,12.43]
[1722069274492,12.43,186.66,186.56,45.0]
[1722069274695,12.43,186.66,186.59,12.43]
[1722069274878,12.43,186.64,186.55,22.2248]
[1722069275080,12.43,186.64,186.5,1.88220834]
[1722069275081,12.43,186.64,186.57,12.43]
[1722069275275,22.99965617,186.66,186.57,12.43]
[1722069275276,16.70065617,186.66,186.57,12.43]
[1722069275474,20.0,186.65,186.59,12.43]
[1722069275881,20.0,186.65,186.6,12.43]
[1722069276086,20.0,186.66,186.6,12.43]
[1722069276289,21.33972371,186.66,186.6,12.43]
[1722069276581,39.12702371,186.66,186.59,12.43]
[1722069276807,39.12702371,186.66,186.52,1.07194735]
[1722069276808,17.7877,186.65,186.52,1.07178142]
[1722069277084,17.7877,186.65,186.58,12.43]
[1722069277486,12.43,186.64,186.57,12.43]
[1722069277694,13.76992648,186.64,186.57,12.43]
[1722069278082,12.43,186.64,186.57,12.43]
[1722069278381,12.43,186.64,186.58,12.43]
[1722069278573,12.43,186.65,186.58,12.43]
[1722069278977,17.7876,186.65,186.58,12.43]
[1722069279176,1.33988799,186.64,186.58,12.43]
[1722069279383,19.12751481,186.65,186.58,12.43]
[1722069279688,1.33991481,186.64,186.58,12.43]
[1722069279879,12.43,186.64,186.51,21.8523]
[1722069280191,1.33992809,186.63,186.57,12.43]
[1722069280991,1.33992809,186.63,186.56,12.43]
[1722069282090,1.33992809,186.63,186.52,45.0]
[1722069282289,1.33992809,186.63,186.56,12.43]
[1722069284178,15.1804,186.62,186.51,15.8163]
[1722069284401,21.34013754,186.61,186.54,12.43]
[1722069284587,1.34013833,186.6,186.54,12.43]
[1722069285092,12.43,186.59,186.52,12.43]
[1722069285292,12.43,186.6,186.53,12.43]
[1722069285686,1.34016817,186.59,186.53,12.43]
[1722069285885,1.34016817,186.59,186.54,12.43]
[1722069286386,12.43,186.6,186.5,0.8104034]
[1722069286576,12.43,186.6,186.53,12.43]
[1722069286977,20.0,186.61,186.53,12.43]
[1722069287190,20.0,186.61,186.5,1.88260984]
[1722069287191,32.43,186.61,186.55,12.43]
[1722069287390,20.0,186.61,186.55,12.43]
[1722069290195,20.0,186.61,186.56,12.43]
[1722069290792,15.1804,186.62,186.57,12.43]
[1722069292202,15.1804,186.62,186.52,1.07194545]
[1722069292407,15.1804,186.62,186.56,12.43]
[1722069292781,1.34003747,186.61,186.56,12.43]
[1722069292993,15.1804,186.62,186.56,12.43]
[1722069294415,1.34001651,186.61,186.56,12.43]
[1722069294605,13.77004393,186.6,186.51,16.1283]
[1722069294811,15.1804,186.62,186.54,12.43]
[1722069294812,5.3587,186.61,186.54,12.43]
[1722069294999,12.43,186.61,186.54,12.43]
[1722069295313,27.6104,186.62,186.56,12.43]
[1722069295490,20.0,186.61,186.56,12.43]
[1722069299524,37.7888,186.61,186.55,12.43]
[1722069299697,32.43,186.61,186.55,12.43]
[1722069300513,20.0,186.61,186.55,12.43]